bitfinex-derivatives/quotes_BNBF0:USTF0_20250302
["timestamp","ask_amount","ask_price","bid_price","bid_amount"]
[1740894725643,1.17625298,609.4,608.62,0.32861227]
[1740894726342,1.17625298,609.39,608.62,0.32861227]
[1740894727541,1.17625298,609.38,608.62,0.32861227]
[1740894728047,1.17625298,609.37,608.62,0.32861227]
[1740894728447,1.17625298,609.36,608.62,0.32861227]
[1740894728850,2.89068649,609.36,608.62,0.32861227]
[1740894729242,1.17625298,609.35,608.62,0.32861227]
[1740894729643,1.71443351,609.36,608.62,0.32861227]
[1740894729644,1.17625298,609.34,608.62,0.32861227]
[1740894730251,1.17625298,609.33,608.62,0.32861227]
[1740894730748,1.71443351,609.36,608.62,0.32861227]
[1740894730749,1.17625298,609.32,608.62,0.32861227]
[1740894731550,1.17625298,609.31,608.62,0.32861227]
[1740894732342,1.7145039,609.36,608.62,0.32861227]
[1740894733149,1.17625939,609.35,608.62,0.32861227]
[1740894733650,1.17625939,609.34,608.65,1.21792817]
[1740894733850,1.17625939,609.34,608.66,0.32859067]
[1740894734355,1.17625939,609.33,608.66,0.32859067]
[1740894735155,1.17625939,609.32,608.66,0.32859067]
[1740894735555,1.7144124,609.36,608.66,0.32859067]
[1740894736153,1.17623431,609.35,608.66,0.32859067]
[1740894736757,1.17623431,609.34,608.66,0.32859067]
[1740894737958,1.17623431,609.33,608.66,0.32859067]
[1740894738558,1.17623431,609.32,608.66,0.32859067]
[1740894738952,1.17623431,609.31,608.66,0.32859067]
[1740894739356,1.71441943,609.36,608.66,0.32859067]
[1740894739955,1.17670837,609.35,608.66,0.32859067]
[1740894740461,1.17670837,609.34,608.66,0.32859067]
[1740894741163,1.17670837,609.33,608.66,0.32859067]
[1740894741760,1.17670837,609.32,608.66,0.32859067]
[1740894742362,1.17670837,609.31,608.66,0.32859067]
[1740894743364,1.17670837,609.3,608.66,0.32859067]
[1740894743764,1.17670837,609.3,608.66,1.54651884]
[1740894743957,1.71444759,609.36,608.66,1.54651884]
[1740894744361,3.06079671,609.35,608.66,1.54651884]
[1740894744762,1.1772295,609.34,608.66,1.54651884]
[1740894745360,1.1772295,609.33,608.66,1.54651884]
[1740894745966,1.1772295,609.32,608.66,1.54651884]
[1740894746666,1.1772295,609.31,608.66,1.54651884]
[1740894747465,1.1772295,609.3,608.66,1.54651884]
[1740894748063,1.1772295,609.29,608.66,1.54651884]
[1740894748968,1.1772295,609.28,608.66,1.54651884]
[1740894749566,1.1772295,609.27,608.66,1.54651884]
[1740894750168,1.1772295,609.26,608.66,1.54651884]
[1740894750365,1.1772295,609.26,608.66,0.32859067]
[1740894750770,1.1772295,609.25,608.66,0.32859067]
[1740894751270,1.1772295,609.24,608.66,0.32859067]
[1740894751864,1.1772295,609.23,608.66,0.32859067]
[1740894752870,1.1772295,609.22,608.66,0.32859067]
[1740894753466,1.1772295,609.21,608.66,0.32859067]
[1740894754169,1.1772295,609.2,608.66,0.32859067]
[1740894755073,1.4484891,609.31,608.66,0.32859067]
[1740894755074,1.1772295,609.19,608.66,0.32859067]
[1740894755873,1.1772295,609.18,608.66,0.32859067]
[1740894756367,1.454,609.17,608.66,0.32859067]
[1740894756773,1.17858312,609.16,608.66,0.32859067]
[1740894757574,1.454,609.17,608.66,0.32859067]
[1740894758668,1.17843995,609.16,608.66,0.32859067]
[1740894759075,1.17843995,609.15,608.66,0.32859067]
[1740894759678,1.17843995,609.14,608.66,0.32859067]
[1740894759975,1.17843995,609.13,608.66,0.32859067]
[1740894760578,1.17843995,609.12,608.66,0.32859067]
[1740894761475,1.454,609.17,608.66,0.32859067]
[1740894762072,1.17786901,609.16,608.66,0.32859067]
[1740894762477,1.17786901,609.15,608.66,0.32859067]
[1740894763178,1.17786901,609.14,608.66,0.32859067]
[1740894763773,1.17786901,609.13,608.66,0.32859067]
[1740894764373,1.454,609.17,608.66,0.32859067]
[1740894765074,1.17734525,609.16,608.66,0.32859067]
[1740894765475,1.17734525,609.15,608.66,0.32859067]
[1740894765879,1.17734525,609.14,608.66,0.32859067]
[1740894766381,1.454,609.17,608.66,0.32859067]
[1740894767081,1.17701574,609.16,608.66,0.32859067]
[1740894767580,1.17701574,609.15,608.66,0.32859067]
[1740894768081,1.454,609.17,608.66,0.32859067]
[1740894768775,1.17673695,609.16,608.66,0.32859067]
[1740894769575,1.454,609.17,608.66,0.32859067]
[1740894771580,1.17642185,609.16,608.66,0.32859067]
[1740894772177,1.17642185,609.15,608.66,0.32859067]
[1740894772878,1.17642185,609.14,608.66,0.32859067]
[1740894773283,1.17642185,609.13,608.66,0.32859067]
[1740894774083,1.17642185,609.12,608.66,0.32859067]
[1740894775088,1.17642185,609.11,608.66,0.32859067]
[1740894775790,1.17642185,609.1,608.66,0.32859067]
[1740894776787,1.17642185,609.09,608.66,0.32859067]
[1740894777387,1.71530673,609.1,608.66,0.32859067]
[1740894779995,1.17516246,609.09,608.66,0.32859067]
[1740894780895,1.17516246,609.08,608.66,0.32859067]
[1740894781794,1.71530673,609.1,608.66,0.32859067]
[1740894785099,1.17485595,609.09,608.66,0.32859067]
[1740894785602,1.87970582,609.16,608.66,0.32859067]
[1740894785803,1.71534196,609.09,608.66,0.32859067]
[1740894788506,1.454,609.17,608.66,0.32859067]
[1740894788708,1.71528559,609.09,608.66,0.32859067]
[1740894789103,1.454,609.17,608.66,0.32859067]
[1740894789308,1.71528559,609.12,608.66,0.32859067]
[1740894789903,1.17475243,609.11,608.66,0.32859067]
[1740894790506,1.17475243,609.1,608.66,0.32859067]
[1740894791308,1.71528559,609.12,608.66,0.32859067]
[1740894791503,1.454,609.17,608.66,0.32859067]
[1740894791703,1.71537014,609.14,608.66,0.32859067]
[1740894792306,1.17472479,609.13,608.66,0.32859067]
[1740894792908,1.17472479,609.12,608.66,0.32859067]
[1740894793311,1.71537014,609.14,608.66,0.32859067]
[1740894793918,1.17481034,609.13,608.66,0.32859067]
[1740894794313,1.17481034,609.12,608.66,0.32859067]
[1740894794818,1.71535605,609.11,608.66,0.32859067]
[1740894795020,2.89016639,609.11,608.66,0.32859067]
[1740894795615,1.17481034,609.1,608.66,0.32859067]
[1740894796318,1.71535605,609.11,608.66,0.32859067]
[1740894797615,1.454,609.17,608.66,0.32859067]
[1740894798017,1.71537719,609.1,608.66,0.32859067]
[1740894799820,1.17518318,609.09,608.66,0.32859067]
[1740894800221,1.17518318,609.08,608.66,0.32859067]
[1740894800822,2.89057446,609.07,608.66,0.32859067]
[1740894802029,1.17518318,609.06,608.66,0.32859067]
[1740894802725,1.17518318,609.05,608.66,0.32859067]
[1740894803126,1.17518318,609.04,608.66,0.32859067]
[1740894803727,1.17518318,609.03,608.66,0.32859067]
[1740894804228,1.71539128,609.07,608.66,0.32859067]
[1740894804826,1.17571445,609.06,608.66,0.32859067]
[1740894805527,1.17571445,609.05,608.66,0.32859067]
[1740894806528,1.17571445,609.04,608.66,0.32859067]
[1740894807229,1.17617206,609.03,608.66,0.32859067]
[1740894807928,1.71539128,609.07,608.66,0.32859067]
[1740894808830,1.17640739,609.06,608.66,0.32859067]
[1740894809531,1.17640739,609.05,608.66,0.32859067]
[1740894810030,2.89194666,609.05,608.66,0.32859067]
[1740894810327,1.17640739,609.04,608.66,0.32859067]
[1740894811032,1.17640739,609.03,608.66,0.32859067]
[1740894812229,1.17640739,609.02,608.66,0.32859067]
[1740894812928,0.98120394,609.5,608.66,0.32859067]
[1740894812929,1.17640739,609.01,608.66,0.32859067]
[1740894813531,1.309,609.0,608.66,0.32859067]
[1740894813729,2.48540739,609.0,608.66,0.32859067]
[1740894814331,1.17640739,608.99,608.66,0.32859067]
[1740894815032,1.309,609.0,608.66,0.32859067]
[1740894816531,1.1777445,608.99,608.66,0.32859067]
[1740894817135,1.309,609.0,608.66,0.32859067]
[1740894818538,1.17811574,608.99,608.66,0.32859067]
[1740894819136,1.309,609.0,608.66,0.32859067]
[1740894820536,1.17833112,608.99,608.66,0.32859067]
[1740894821433,1.17833112,608.98,608.66,0.32859067]
[1740894822238,1.17833112,608.97,608.66,0.32859067]
[1740894822938,1.17833112,608.96,608.66,0.32859067]
[1740894823738,1.17833112,608.95,608.66,0.32859067]
[1740894824540,1.17833112,608.94,608.66,0.32859067]
[1740894824735,1.17833112,608.93,608.66,0.32859067]
[1740894825734,1.17833112,608.92,608.66,0.32859067]
[1740894826136,1.17833112,608.91,608.66,0.32859067]
[1740894826537,1.71555336,608.99,608.66,0.32859067]
[1740894827343,1.17833638,608.98,608.66,0.32859067]
[1740894828037,1.17833638,608.97,608.66,0.32859067]
[1740894828842,1.17833638,608.96,608.66,0.32859067]
[1740894829538,1.17833638,608.95,608.66,0.32859067]
[1740894830244,1.17833638,608.94,608.66,0.32859067]
[1740894833948,1.71558156,608.99,608.66,0.32859067]
[1740894834544,1.17865082,608.98,608.66,0.32859067]
[1740894835250,1.17865082,608.97,608.66,0.32859067]
[1740894835943,1.71558156,608.99,608.66,0.32859067]
[1740894835944,1.17865082,608.96,608.66,0.32859067]
[1740894836543,1.309,609.0,608.66,0.32859067]
[1740894836544,1.17865082,608.95,608.66,0.32859067]
[1740894836943,1.17865082,608.94,608.66,0.32859067]
[1740894837547,1.17865082,608.93,608.66,0.32859067]
[1740894837748,1.88577105,608.99,608.66,0.32859067]
[1740894838650,3.06436064,608.98,608.66,0.32859067]
[1740894839247,1.17858959,608.97,608.66,0.32859067]
[1740894840052,1.17858959,608.96,608.66,0.32859067]
[1740894840446,1.71543356,608.99,608.66,0.32859067]
[1740894840447,1.17858959,608.95,608.66,0.32859067]
[1740894841154,1.17858959,608.94,608.66,0.32859067]
[1740894841855,1.17858959,608.93,608.66,0.32859067]
[1740894842257,1.17858959,608.92,608.66,0.32859067]
[1740894842951,1.309,609.0,608.66,0.32859067]
[1740894842952,1.17858959,608.91,608.66,0.32859067]
[1740894843358,1.7154688,608.99,608.66,0.32859067]
[1740894843550,1.17850006,608.98,608.66,0.32859067]
[1740894843852,3.06410015,608.98,608.66,0.32859067]
[1740894844351,3.06410015,608.97,608.66,0.32859067]
[1740894844551,1.17850006,608.97,608.66,0.32859067]
[1740894844751,1.17850006,608.96,608.66,0.32859067]
[1740894845349,0.90521872,608.95,608.23,1.21792817]
[1740894845553,0.90521872,608.94,608.24,0.32881757]
[1740894845754,0.90521872,608.93,608.24,0.32881757]
[1740894845950,0.90521872,608.92,608.24,0.32881757]
[1740894846151,0.90521872,608.91,608.24,0.32881757]
[1740894846355,0.90521872,608.9,608.24,0.32881757]
[1740894846656,3.0638705,608.89,608.24,0.32881757]
[1740894847550,1.17850006,608.88,608.24,0.32881757]
[1740894848354,1.17850006,608.87,608.24,0.32881757]
[1740894848953,1.17850006,608.86,608.24,0.32881757]
[1740894849754,1.17850006,608.85,608.24,0.32881757]
[1740894850256,1.88537044,608.94,608.24,0.32881757]
[1740894850960,1.17763573,608.93,608.24,0.32881757]
[1740894851862,1.17763573,608.92,608.24,0.32881757]
[1740894852362,1.71611737,608.97,608.24,0.32881757]
[1740894852557,1.17756921,608.96,608.24,0.32881757]
[1740894853356,2.08209322,608.96,608.24,0.32881757]
[1740894853557,1.17756921,608.95,608.24,0.32881757]
[1740894854062,1.17756921,608.94,608.24,0.32881757]
[1740894854757,2.89351029,608.93,608.24,0.32881757]
[1740894855160,1.17756921,608.92,608.24,0.32881757]
[1740894855763,1.17756921,608.91,608.24,0.32881757]
[1740894856564,1.17756921,608.9,608.24,0.32881757]
[1740894857665,1.17756921,608.89,608.24,0.32881757]
[1740894857964,2.89382764,608.89,608.24,0.32881757]
[1740894858366,1.17756921,608.88,608.24,0.32881757]
[1740894859166,1.17756921,608.87,608.24,0.32881757]
[1740894859868,1.17756921,608.86,608.24,0.32881757]
[1740894860661,1.17756921,608.85,608.24,0.32881757]
[1740894861063,2.89384174,608.85,608.24,0.32881757]
[1740894861369,1.17756921,608.84,608.24,0.32881757]
[1740894861964,1.17756921,608.83,608.24,0.32881757]
[1740894863071,1.71627253,608.85,608.24,0.32881757]
[1740894863568,1.88316406,608.93,608.24,0.32881757]
[1740894863769,1.71619495,608.85,608.24,0.32881757]
[1740894863969,1.88316406,608.93,608.24,0.32881757]
[1740894864168,2.78698393,608.93,608.24,0.32881757]
[1740894864368,1.71619495,608.85,608.24,0.32881757]
[1740894864571,1.17672866,608.92,608.24,0.32881757]
[1740894865072,1.17672866,608.91,608.24,0.32881757]
[1740894865673,1.17672866,608.9,608.24,0.32881757]
[1740894865868,2.89300825,608.9,608.24,0.32881757]
[1740894866569,1.17672866,608.9,608.24,0.32881757]
[1740894866874,1.17672866,608.89,608.24,0.32881757]
[1740894867272,2.89275435,608.89,608.24,0.32881757]
[1740894867674,1.17672866,608.88,608.24,0.32881757]
[1740894868277,1.17672866,608.87,608.24,0.32881757]
[1740894869176,1.17672866,608.86,608.24,0.32881757]
[1740894869675,1.17672866,608.85,608.24,0.32881757]
[1740894869875,2.89288129,608.85,608.24,0.32881757]
[1740894870878,1.17672866,608.84,608.24,0.32881757]
[1740894871274,1.17672866,608.83,608.24,0.32881757]
[1740894871871,1.17672866,608.82,608.24,0.32881757]
[1740894872372,1.17672866,608.81,608.24,0.32881757]
[1740894872773,1.17672866,608.8,608.24,0.32881757]
[1740894872972,2.89313522,608.8,608.24,0.32881757]
[1740894873381,1.17672866,608.79,608.24,0.32881757]
[1740894874281,1.17672866,608.78,608.24,0.32881757]
[1740894874682,1.17672866,608.77,608.24,0.32881757]
[1740894875582,1.17672866,608.79,608.24,0.32881757]
[1740894876176,1.71618084,608.81,608.24,0.32881757]
[1740894877083,1.17568913,608.8,608.24,0.32881757]
[1740894877476,1.71618084,608.81,608.24,0.32881757]
[1740894878076,1.88316406,608.93,608.24,0.32881757]
[1740894878282,1.71604685,608.9,608.24,0.32881757]
[1740894879282,1.17572258,608.89,608.24,0.32881757]
[1740894879683,1.17572258,608.88,608.24,0.32881757]
[1740894880384,1.17572258,608.87,608.24,0.32881757]
[1740894881480,1.565,608.94,608.24,0.32881757]
[1740894881989,2.89188709,608.93,608.24,0.32881757]
[1740894882286,1.17597422,608.92,608.24,0.32881757]
[1740894882785,1.71591287,608.93,608.24,0.32881757]
[1740894883085,1.17602313,608.92,608.24,0.32881757]
[1740894883486,1.17602313,608.91,608.24,0.32881757]
[1740894884087,1.17602313,608.9,608.24,0.32881757]
[1740894884789,1.17602313,608.89,608.24,0.32881757]
[1740894885486,1.17602313,608.88,608.24,0.32881757]
[1740894886187,1.71587762,608.9,608.24,0.32881757]
[1740894886488,1.17625032,608.89,608.24,0.32881757]
[1740894886689,1.17625032,608.88,608.24,0.32881757]
[1740894887582,1.17625032,608.87,608.24,0.32881757]
[1740894887987,1.179,608.86,608.24,0.32881757]
[1740894888786,1.17650943,608.85,608.24,0.32881757]
[1740894888980,2.08015477,608.85,608.24,0.32881757]
[1740894889384,1.17650943,608.84,608.24,0.32881757]
[1740894890182,1.17650943,608.83,608.24,0.32881757]
[1740894890685,1.179,608.86,608.24,0.32881757]
[1740894891691,1.17649261,608.85,608.24,0.32881757]
[1740894892487,1.179,608.86,608.24,0.32881757]
[1740894896290,2.08293478,608.86,608.24,0.32881757]
[1740894896483,3.05901279,608.85,608.24,0.32881757]
[1740894896686,0.90407337,608.84,608.24,0.32881757]
[1740894896885,0.90407337,608.83,608.24,0.32881757]
[1740894897284,3.96308913,608.82,608.24,0.32881757]
[1740894897484,0.90407634,608.81,608.24,0.32881757]
[1740894897687,0.90407634,608.8,608.24,0.32881757]
[1740894897887,0.90407634,608.79,608.24,0.32881757]
[1740894898087,0.90407634,608.78,608.24,0.32881757]
[1740894898289,0.90407634,608.77,608.24,0.32881757]
[1740894898586,0.90407634,608.78,608.24,0.32881757]
[1740894898885,3.05901279,608.76,608.24,0.32881757]
[1740894899694,1.179,608.86,608.24,0.32881757]
[1740894899695,3.05901279,608.75,608.24,0.32881757]
[1740894900092,4.77518658,608.75,608.24,0.32881757]
[1740894900895,1.17700917,608.74,608.24,0.32881757]
[1740894901294,1.17700917,608.73,608.24,0.32881757]
[1740894901690,1.17700917,608.72,608.24,0.32881757]
[1740894902596,1.17700917,608.71,608.24,0.32881757]
[1740894902997,1.71618789,608.79,608.24,0.32881757]
[1740894902998,1.88200362,608.78,608.24,0.32881757]
[1740894903390,1.17745679,608.77,608.24,0.32881757]
[1740894904598,1.17745679,608.76,608.24,0.32881757]
[1740894905097,1.17745679,608.75,608.24,0.32881757]
[1740894905894,1.17745679,608.74,608.24,0.32881757]
[1740894906696,1.17745679,608.73,608.24,0.32881757]
[1740894907098,1.17745679,608.72,608.24,0.32881757]
[1740894907998,1.17745679,608.71,608.24,0.32881757]
[1740894908600,1.17745679,608.7,608.24,0.32881757]
[1740894908801,2.8938563,608.7,608.24,0.32881757]
[1740894909295,1.17745679,608.69,608.24,0.32881757]
[1740894910197,1.17745679,608.68,608.24,0.32881757]
[1740894911001,1.17745679,608.67,608.24,0.32881757]
[1740894911403,1.71639951,608.7,608.24,0.32881757]
[1740894911702,0.90437359,608.82,608.24,0.32881757]
[1740894911898,1.71644184,608.7,608.24,0.32881757]
[1740894912104,0.90437643,608.8,608.24,0.32881757]
[1740894912404,1.71639951,608.74,608.24,0.32881757]
[1740894913405,1.1775397,608.73,608.24,0.32881757]
[1740894913805,1.1775397,608.72,608.24,0.32881757]
[1740894915005,1.1775397,608.71,608.24,0.32881757]
[1740894915403,1.1775397,608.7,608.24,0.32881757]
[1740894915801,1.1775397,608.69,608.24,0.32881757]
[1740894916100,2.7585397,608.69,608.24,0.32881757]
[1740894916500,1.1775397,608.68,608.24,0.32881757]
[1740894917303,1.581,608.69,608.24,0.32881757]
[1740894918706,1.17759773,608.68,608.24,0.32881757]
[1740894919806,1.17759773,608.67,608.24,0.32881757]
[1740894920503,1.17759773,608.66,608.24,0.32881757]
[1740894921108,1.17759773,608.65,608.24,0.32881757]
[1740894921407,1.17759773,608.64,608.24,0.32881757]
[1740894922201,1.581,608.69,608.24,0.32881757]
[1740894923006,1.1775873,608.68,608.24,0.32881757]
[1740894923702,1.1775873,608.67,608.24,0.32881757]
[1740894924307,1.1775873,608.66,608.24,0.32881757]
[1740894924907,1.1775873,608.65,608.24,0.32881757]
[1740894925608,1.1775873,608.64,608.24,0.32881757]
[1740894926110,1.581,608.69,608.24,0.32881757]
[1740894926505,1.17745959,608.68,608.24,0.32881757]
[1740894927407,1.17745959,608.67,608.24,0.32881757]
[1740894928111,1.17745959,608.66,608.24,0.32881757]
[1740894928509,1.17745959,608.65,608.24,0.32881757]
[1740894928911,0.90408514,608.64,608.24,0.32881757]
[1740894929114,0.90408514,608.63,608.24,0.32881757]
[1740894929313,0.90408514,608.62,608.24,0.32881757]
[1740894929615,0.90408514,608.61,608.24,0.32881757]
[1740894929812,0.90408514,608.6,608.24,0.32881757]
[1740894930013,0.90408514,608.59,608.24,0.32881757]
[1740894930213,0.90408514,608.58,608.24,0.32881757]
[1740894930418,0.90408514,608.61,608.24,0.32881757]
[1740894930616,0.90408514,608.6,608.24,0.32881757]
[1740894930811,0.90408514,608.59,608.24,0.32881757]
[1740894931009,0.90408514,608.61,608.24,0.32881757]
[1740894931213,3.06017106,608.59,608.24,0.32881757]
[1740894931515,0.90408514,608.58,608.24,0.32881757]
[1740894931918,1.17745959,608.57,608.24,0.32881757]
[1740894932314,1.17745959,608.56,608.24,0.32881757]
[1740894932819,1.71697818,608.55,608.24,0.32881757]
[1740894933230,1.17745959,608.54,608.24,0.32881757]
[1740894933920,1.17745959,608.53,608.24,0.32881757]
[1740894934619,1.17745959,608.52,608.24,0.32881757]
[1740894935520,1.88271147,608.68,608.24,0.32881757]
[1740894935724,0.90197126,608.67,608.24,0.32881757]
[1740894935925,1.71705584,608.53,608.24,0.32881757]
[1740894936125,2.78468273,608.66,608.24,0.32881757]
[1740894936428,1.71704878,608.53,608.24,0.32881757]
[1740894936728,0.90197126,608.65,608.24,0.32881757]
[1740894936928,1.1740312,608.52,608.24,0.32881757]
[1740894937424,1.1740312,608.51,608.24,0.32881757]
[1740894938022,1.1740312,608.5,608.24,0.32881757]
[1740894938726,0.90139361,608.66,608.24,0.32881757]
[1740894938922,0.90139361,608.67,608.24,0.32881757]
[1740894939227,2.78410508,608.68,608.24,0.32881757]
[1740894939428,1.71702054,608.66,608.24,0.32881757]
[1740894939727,2.89052301,608.66,608.24,0.32881757]
[1740894940028,0.90139361,608.65,608.24,0.32881757]
[1740894940228,2.07489608,608.65,608.24,0.32881757]
[1740894940728,1.17350247,608.64,608.24,0.32881757]
[1740894941328,1.17350247,608.63,608.24,0.32881757]
[1740894941930,1.71704878,608.62,608.24,0.32881757]
[1740894942133,1.17350247,608.61,608.24,0.32881757]
[1740894942626,1.17350247,608.6,608.24,0.32881757]
[1740894942831,1.17350247,608.6,607.28,1.21792817]
[1740894943132,1.17350247,608.59,607.3,0.32932652]
[1740894944229,1.17350247,608.58,607.3,0.32932652]
[1740894944429,1.17350247,608.57,607.3,0.32932652]
[1740894945132,1.71721824,608.56,607.3,2.04654476]
[1740894945328,3.79215874,608.56,607.3,2.04654476]
[1740894945530,2.89072071,608.56,607.3,2.04654476]
[1740894946032,1.17350247,608.55,607.3,2.04654476]
[1740894946834,1.17350247,608.54,607.3,2.04654476]
[1740894947232,1.17350247,608.53,607.3,2.04654476]
[1740894947634,1.17350247,608.52,607.3,0.32932652]
[1740894947835,2.89073483,608.52,607.3,2.04655888]
[1740894948533,1.17350247,608.51,607.3,2.04655888]
[1740894949230,1.17350247,608.5,607.3,2.04655888]
[1740894950036,1.71723236,608.52,607.3,2.04655888]
[1740894950638,1.17350247,608.51,607.3,0.32932652]
[1740894951038,2.89074189,608.51,607.3,2.04656594]
[1740894951439,1.71723942,608.51,607.3,2.04656594]
[1740894953336,1.71723942,608.51,607.32,1.21792817]
[1740894953540,1.17350247,608.5,607.34,0.32930483]
[1740894953942,1.71723236,608.5,607.34,0.32930483]
[1740894954943,1.71723236,608.5,607.43,1.21792817]
[1740894955142,1.71723236,608.5,607.45,0.3292452]
[1740894956536,1.17350247,608.57,607.45,0.3292452]
[1740894956740,1.17350247,608.57,607.5,1.21792817]
[1740894956935,1.71716175,608.49,607.52,0.32920726]
[1740894957136,1.17350247,608.56,607.52,0.32920726]
[1740894957343,2.89056537,608.56,607.52,0.32920726]
[1740894957740,1.7170629,608.56,607.52,0.32920726]
[1740894959740,1.17350247,608.63,607.52,0.32920726]
[1740894960243,1.71701348,608.62,607.52,0.32920726]
[1740894960445,3.29701348,608.62,607.52,0.32920726]
[1740894960943,1.17350247,608.61,607.52,0.32920726]
[1740894963040,1.58,608.62,607.52,0.32920726]
[1740894965545,1.58,608.62,607.56,1.21792817]
[1740894965745,1.17350247,608.61,607.58,0.32917475]
[1740894966047,1.17350247,608.6,607.58,0.32917475]
[1740894966642,1.17350247,608.59,607.58,0.32917475]
[1740894967041,1.17350247,608.58,607.67,1.21792817]
[1740894967241,1.17350247,608.58,607.69,0.32911517]
[1740894967947,1.17350247,608.61,607.69,0.32911517]
[1740894968649,1.58,608.62,607.69,0.32911517]
[1740894978650,1.17350247,608.61,607.69,0.32911517]
[1740894979054,1.17350247,608.61,607.81,1.21792817]
[1740894979252,1.17350247,608.6,607.82,0.32904478]
[1740894979657,1.17350247,608.59,607.82,0.32904478]
[1740894979855,1.17350247,608.58,607.82,0.32904478]
[1740894980449,1.71661117,608.6,607.82,0.32904478]
[1740894981450,1.17558737,608.59,607.82,0.32904478]
[1740894982155,1.17558737,608.58,607.82,0.32904478]
[1740894982857,1.17558737,608.57,607.82,0.32904478]
[1740894983258,1.58,608.62,607.82,0.32904478]
[1740894985357,1.58,608.62,607.88,1.21792817]
[1740894985557,1.58,608.62,607.89,0.32900689]
[1740894996064,1.71670997,608.61,607.89,0.32900689]
[1740894996369,2.89156644,608.61,607.89,0.32900689]
[1740894996969,0.90217824,608.6,607.89,0.32900689]
[1740894997165,2.07703471,608.6,607.89,0.32900689]
[1740894997964,1.17485647,608.59,607.89,0.32900689]
[1740894998169,2.07703471,608.59,607.89,0.32900689]
[1740894998769,1.17485647,608.58,607.89,0.32900689]
[1740894998965,2.89178524,608.58,607.89,0.32900689]
[1740894999365,2.07697642,608.57,607.89,0.32900689]
[1740894999571,3.54297642,608.57,607.89,0.32900689]
[1740894999766,0.90211995,608.56,607.89,0.32900689]
[1740894999972,2.07697642,608.56,607.89,0.32900689]
[1740895001071,1.17485647,608.55,607.89,0.32900689]
[1740895001572,1.17485647,608.54,607.89,0.32900689]
[1740895002068,2.89180642,608.54,607.89,0.32900689]
[1740895002274,2.07697642,608.53,607.89,0.32900689]
[1740895003173,1.17485647,608.52,607.89,0.32900689]
[1740895004175,1.17485647,608.51,607.89,0.32900689]
[1740895004770,1.17485647,608.5,607.89,0.32900689]
[1740895004974,2.89201116,608.5,607.89,0.32900689]
[1740895005671,1.17485647,608.49,607.89,0.32900689]
[1740895006475,1.17485647,608.48,607.89,0.32900689]
[1740895007179,1.71715469,608.5,607.89,0.32900689]
[1740895007180,1.17485647,608.47,607.89,0.32900689]
[1740895007779,2.89206765,608.46,607.89,0.32900689]
[1740895008780,1.17485647,608.45,607.89,0.32900689]
[1740895009081,1.17485647,608.44,607.89,0.32900689]
[1740895009484,1.17485647,608.43,607.89,0.32900689]
[1740895009882,1.17485647,608.45,607.89,0.32900689]
[1740895011284,1.71728179,608.46,607.89,0.32900689]
[1740895013581,1.17408648,608.53,607.89,0.32900689]
[1740895013786,1.71714763,608.46,607.89,0.32900689]
[1740895014385,1.17408648,608.52,607.89,0.32900689]
[1740895014890,1.17408648,608.51,607.89,0.32900689]
[1740895015886,1.17408648,608.52,607.89,0.32900689]
[1740895017289,1.17408648,608.56,607.89,0.32900689]
[1740895017689,3.18289348,608.57,607.89,0.32900689]
[1740895018090,1.466,608.57,607.89,0.32900689]
[1740895018991,1.17439706,608.56,607.89,0.32900689]
[1740895019391,1.17439706,608.55,607.89,0.32900689]
[1740895019994,1.17439706,608.54,607.89,0.32900689]
[1740895020494,1.466,608.57,607.89,0.32900689]
[1740895021094,1.17431981,608.56,607.89,0.32900689]
[1740895021692,1.17431981,608.55,607.89,0.32900689]
[1740895022294,1.17431981,608.54,607.89,0.32900689]
[1740895022796,1.17431981,608.53,607.89,0.32900689]
[1740895023195,3.18289348,608.57,607.89,0.32900689]
[1740895023596,1.17449676,608.56,607.89,0.32900689]
[1740895024094,1.17449676,608.55,607.89,0.32900689]
[1740895024491,1.17449676,608.54,607.89,0.32900689]
[1740895024994,1.17449676,608.53,607.89,0.32900689]
[1740895025396,3.18289348,608.57,607.89,0.32900689]
[1740895025596,1.466,608.57,607.89,0.32900689]
[1740895025999,1.17462679,608.56,607.89,0.32900689]
[1740895026596,1.17462679,608.55,607.89,0.32900689]
[1740895027698,1.466,608.57,607.89,0.32900689]
[1740895028303,1.17471247,608.56,607.89,0.32900689]
[1740895028799,1.17471247,608.55,607.89,0.32900689]
[1740895029201,1.17471247,608.54,607.89,0.32900689]
[1740895029703,1.466,608.57,607.89,0.32900689]
[1740895030097,1.17474906,608.56,607.89,0.32900689]
[1740895030606,1.17474906,608.55,607.89,0.32900689]
[1740895031103,1.466,608.57,607.89,0.32900689]
[1740895032005,1.17477246,608.56,607.89,0.32900689]
[1740895032705,1.17477246,608.55,607.89,0.32900689]
[1740895033603,1.17477246,608.54,607.89,0.32900689]
[1740895034200,1.17477246,608.53,607.89,0.32900689]
[1740895035006,4.77145298,608.52,607.89,0.32900689]
[1740895035199,0.90214459,608.51,607.89,0.32900689]
[1740895035803,3.05453833,608.5,607.89,0.32900689]
[1740895035999,0.90214459,608.49,607.89,0.32900689]
[1740895036306,1.17477246,608.48,607.89,0.32900689]
[1740895036805,2.07673225,608.48,607.89,0.32900689]